bitfinex-derivatives/quotes_SOLF0:USTF0_20251024
["timestamp","ask_amount","ask_price","bid_price","bid_amount"]
[1761347649609,4.80123385,193.34,193.27,2.78]
[1761347649811,3.80702705,193.33,193.27,2.78]
[1761347650108,3.80702705,193.32,193.29,2.78]
[1761347650310,3.80702705,193.31,193.29,2.78]
[1761347650509,3.80702705,193.3,193.29,2.78]
[1761347651911,3.80702705,193.34,193.29,2.78]
[1761347652105,3.80702705,193.33,193.29,2.78]
[1761347652310,3.80702705,193.32,193.29,2.78]
[1761347652609,3.80702705,193.34,193.29,2.78]
[1761347652809,3.80702705,193.33,193.29,2.78]
[1761347653009,3.80702705,193.32,193.3,2.78]
[1761347653206,3.80702705,193.35,193.3,2.78]
[1761347653407,3.80702705,193.34,193.3,2.78]
[1761347653610,3.80702705,193.33,193.3,2.78]
[1761347653810,3.80702705,193.36,193.3,2.78]
[1761347654113,3.80702705,193.35,193.3,2.78]
[1761347654308,3.80702705,193.34,193.3,2.78]
[1761347654504,3.80702705,193.36,193.3,2.78]
[1761347654712,3.80702705,193.35,193.3,2.78]
[1761347655010,9.46877582,193.37,193.3,2.78]
[1761347655011,3.80702705,193.34,193.3,2.78]
[1761347655314,3.80702705,193.36,193.3,2.78]
[1761347655515,3.80702705,193.35,193.3,2.78]
[1761347655811,3.80702705,193.34,193.3,2.78]
[1761347656013,3.80702705,193.36,193.3,2.78]
[1761347656311,4.6537,193.37,193.3,2.78]
[1761347656312,3.80702705,193.35,193.3,2.78]
[1761347656500,3.80702705,193.34,193.3,2.78]
[1761347656705,3.80702705,193.36,193.3,2.78]
[1761347656907,3.80702705,193.35,193.3,2.78]
[1761347657107,3.80702705,193.34,193.3,2.78]
[1761347657306,3.80702705,193.36,193.3,2.78]
[1761347657607,3.80702705,193.35,193.3,2.78]
[1761347657810,3.80702705,193.34,193.3,2.78]
[1761347658012,3.80702705,193.36,193.3,2.78]
[1761347658216,3.80702705,193.35,193.3,2.78]
[1761347658416,3.80702705,193.34,193.3,2.78]
[1761347658616,3.80702705,193.36,193.3,2.78]
[1761347658817,3.80702705,193.35,193.3,2.78]
[1761347659018,3.80702705,193.34,193.3,2.78]
[1761347659217,3.80702705,193.36,193.3,2.78]
[1761347659415,3.80702705,193.35,193.3,2.78]
[1761347659615,3.80702705,193.34,193.3,2.78]
[1761347659817,3.80702705,193.36,193.3,2.78]
[1761347660021,3.80702705,193.35,193.3,2.78]
[1761347660222,3.80702705,193.34,193.28,2.78]
[1761347660413,3.80702705,193.33,193.28,2.78]
[1761347660612,3.80702705,193.32,193.28,2.78]
[1761347660812,3.80702705,193.34,193.28,2.78]
[1761347661013,3.80702705,193.33,193.28,2.78]
[1761347661214,3.80702705,193.32,193.28,2.78]
[1761347661414,3.80702705,193.34,193.28,2.78]
[1761347661718,3.80702705,193.33,193.28,2.78]
[1761347661918,3.80702705,193.32,193.28,2.78]
[1761347662218,3.80702705,193.34,193.28,2.78]
[1761347662414,4.6543,193.35,193.28,2.78]
[1761347662415,3.80702705,193.33,193.28,2.78]
[1761347662615,3.80702705,193.32,193.28,2.78]
[1761347662817,3.80702705,193.34,193.28,2.78]
[1761347663117,3.80702705,193.33,193.28,2.78]
[1761347663316,3.80702705,193.34,193.28,2.78]
[1761347663508,3.80702705,193.33,193.28,2.78]
[1761347663710,3.80702705,193.32,193.26,136.30604651]
[1761347663912,3.80702705,193.31,193.26,136.30604651]
[1761347664118,3.80702705,193.3,193.26,136.30604651]
[1761347664315,3.80702705,193.33,193.26,139.08604651]
[1761347664516,3.80702705,193.32,193.26,139.08604651]
[1761347664718,3.80702705,193.31,193.26,139.08604651]
[1761347665023,4.655,193.32,193.26,139.08604651]
[1761347665227,3.80702705,193.31,193.26,139.08604651]
[1761347666621,4.655,193.32,193.26,139.08604651]
[1761347666817,8.46202705,193.32,193.26,139.08604651]
[1761347667020,3.80702705,193.31,193.26,139.08604651]
[1761347667420,4.655,193.32,193.26,139.08604651]
[1761347667623,8.46202705,193.32,193.26,139.08604651]
[1761347667815,3.80702705,193.31,193.26,136.30604651]
[1761347668011,4.655,193.32,193.26,136.30604651]
[1761347668523,8.46202705,193.32,193.26,136.30604651]
[1761347668716,3.80702705,193.31,193.27,2.78]
[1761347669116,4.655,193.32,193.26,136.30604651]
[1761347669312,4.6553,193.31,193.26,136.30604651]
[1761347669824,4.6553,193.31,193.26,139.08604651]
[1761347670422,8.46232705,193.31,193.26,139.08604651]
[1761347670622,3.80702705,193.3,193.26,139.08604651]
[1761347670825,4.6553,193.31,193.26,139.08604651]
[1761347671424,4.6553,193.31,193.27,2.78]
[1761347677832,8.46232705,193.31,193.27,2.78]
[1761347678032,4.6553,193.31,193.27,2.78]
[1761347680337,8.33334218,193.31,193.27,2.78]
[1761347680542,4.6553,193.31,193.27,2.78]
[1761347681440,8.33312583,193.31,193.27,2.78]
[1761347681644,4.6553,193.31,193.27,2.78]
[1761347697256,4.79862114,193.35,193.26,3.77028328]
[1761347697451,4.79862114,193.35,193.27,2.87]
[1761347698354,4.79862114,193.34,193.27,2.87]
[1761347699058,4.6547,193.33,193.27,2.87]
[1761347702160,4.79862114,193.34,193.27,2.87]
[1761347702359,4.79862114,193.35,193.27,2.87]
[1761347703361,4.79862114,193.34,193.27,2.87]
[1761347704766,4.79862114,193.34,193.3,1.50695946]
[1761347704962,9.45312114,193.34,193.3,1.50695946]
[1761347705154,4.79862114,193.34,193.27,2.87]
[1761347705353,4.79862114,193.34,193.27,4.37695946]
[1761347706366,4.79862114,193.33,193.27,4.37695946]
[1761347706964,9.45342114,193.33,193.27,4.37695946]
[1761347707167,9.45342114,193.33,193.27,1.50695946]
[1761347707168,4.79862114,193.33,193.27,1.50695946]
[1761347707368,4.79862114,193.33,193.29,1.50695946]
[1761347707670,4.79862114,193.33,193.28,2.87]
[1761347708965,9.45342114,193.33,193.28,2.87]
[1761347716166,7.94796504,193.35,193.26,2.40724274]
[1761347716167,9.45372114,193.32,193.26,2.40724274]
[1761347717068,9.45372114,193.32,193.26,5.04724274]
[1761347717374,9.45372114,193.32,193.27,2.64]
[1761347719473,9.45372114,193.32,193.26,2.40724274]
[1761347720374,9.45372114,193.32,193.26,0.90028328]
[1761347724575,9.45372114,193.32,193.26,3.54028328]
[1761347727577,9.45372114,193.32,193.27,4.14695946]
[1761347728084,9.45372114,193.32,193.28,2.64]
[1761347728481,9.45372114,193.32,193.27,1.50695946]
[1761347728672,4.6552,193.31,193.27,1.50695946]
[1761347731780,4.6552,193.31,193.27,4.14695946]
[1761347733386,4.6552,193.31,193.27,2.64]
[1761347733684,4.6552,193.31,193.26,5.04724274]
[1761347734587,4.6552,193.31,193.27,2.64]
[1761347735084,4.79862114,193.32,193.26,0.90028328]
[1761347735288,4.79862114,193.31,193.26,0.90028328]
[1761347736186,4.6558,193.29,193.26,0.90028328]
[1761347736387,6.31835344,193.31,193.23,4.14695946]
[1761347736585,6.31835344,193.31,193.23,5.04753396]
[1761347736791,4.81139398,193.31,193.23,5.04753396]
[1761347737191,4.656,193.28,193.24,2.64]
[1761347738789,9.46679398,193.3,193.24,2.64]
[1761347739190,9.46679398,193.3,193.25,1.50695946]
[1761347739392,4.6554,193.3,193.26,2.71]
[1761347740287,66.9954,193.3,193.26,2.71]
[1761347742892,4.6554,193.3,193.26,2.71]
[1761347743097,66.9954,193.3,193.26,2.71]
[1761347743897,4.6554,193.3,193.26,2.71]
[1761347746484,62.34,193.31,193.26,2.71]
[1761347751500,66.9952,193.31,193.26,2.71]
[1761347754201,4.6552,193.31,193.26,2.71]
[1761347754396,66.9952,193.31,193.26,2.71]
[1761347760705,102.7389718,193.33,193.26,2.71]
[1761347760901,62.34,193.32,193.26,4.21695946]
[1761347761103,62.34,193.32,193.26,1.50695946]
[1761347761308,62.34,193.32,193.27,2.82]
[1761347762406,62.34,193.31,193.27,2.82]
[1761347765708,62.34,193.32,193.27,2.82]
[1761347771721,62.32,193.32,193.28,2.6]
[1761347773619,155.59287782,193.33,193.28,2.6]
[1761347775617,93.27287782,193.33,193.29,2.6]
[1761347775817,155.59287782,193.33,193.29,2.6]
[1761347777233,155.59287782,193.33,193.24,6.44282785]
[1761347777234,93.27287782,193.33,193.3,2.6]
[1761347777521,9.63340866,193.43,193.3,2.6]
[1761347777522,62.32,193.39,193.3,2.6]
[1761347777921,62.32,193.39,193.31,2.6]
[1761347779117,62.32,193.39,193.34,2.6]
[1761347780715,62.32,193.41,193.35,2.6]
[1761347781524,2.35516963,193.43,193.36,2.6]
[1761347781720,64.67516963,193.43,193.36,2.6]
[1761347783126,64.67516963,193.43,193.37,2.6]
[1761347784526,2.35516963,193.43,193.37,2.6]
[1761347789836,2.35516963,193.4,193.33,2.6]
[1761347790040,64.65516963,193.4,193.33,2.6]
[1761347790939,64.65516963,193.4,193.33,7.2544]
[1761347791833,2.35516963,193.4,193.34,2.6]
[1761347800350,6.63161354,193.4,193.34,2.6]
[1761347817862,2.35516963,193.37,193.31,2.64]
[1761347820262,6.63161354,193.37,193.31,2.64]
[1761347820465,2.35516963,193.37,193.31,2.64]
[1761347820766,6.63161354,193.37,193.31,2.64]
[1761347820965,2.35516963,193.37,193.31,2.64]
[1761347821165,6.63161354,193.37,193.31,2.64]
[1761347821367,2.35516963,193.37,193.31,2.64]
[1761347821573,6.63161354,193.37,193.31,2.64]
[1761347822272,4.27644391,193.36,193.31,2.64]
[1761347827279,6.63161354,193.37,193.31,2.64]
[1761347828780,5.783185,193.37,193.31,2.64]
[1761347831475,4.27644391,193.37,193.31,4.6549]
[1761347831676,4.6533,193.39,193.31,4.6549]
[1761347831677,5.783185,193.38,193.32,2.66]
[1761347831880,4.27644391,193.37,193.32,2.66]
[1761347836982,4.27644391,193.37,193.33,2.66]
[1761347837195,5.783185,193.4,193.33,2.66]
[1761347837487,4.27644391,193.39,193.33,2.66]
[1761347837682,4.27644391,193.38,193.33,2.66]
[1761347837884,4.27644391,193.37,193.33,2.66]
[1761347838186,4.27644391,193.39,193.34,2.66]
[1761347838385,4.27644391,193.38,193.34,2.66]
[1761347838679,4.27644391,193.37,193.34,2.66]
[1761347838883,4.27644391,193.39,193.34,2.66]
[1761347839091,4.27644391,193.38,193.34,2.66]
[1761347839286,4.27644391,193.37,193.34,2.66]
[1761347839488,4.27644391,193.39,193.34,2.66]
[1761347839795,4.27644391,193.38,193.34,2.66]
[1761347840093,4.27644391,193.37,193.34,2.66]
[1761347840294,4.27644391,193.39,193.34,2.66]
[1761347840494,1.50674109,193.4,193.34,2.66]
[1761347840495,4.27644391,193.38,193.34,2.66]
[1761347840695,4.27644391,193.37,193.34,2.66]
[1761347840894,4.27644391,193.39,193.34,2.66]
[1761347841085,4.27644391,193.38,193.34,2.66]
[1761347841285,4.27644391,193.37,193.34,2.66]
[1761347841586,4.27644391,193.39,193.34,2.66]
[1761347841787,4.27644391,193.38,193.34,2.66]
[1761347841987,4.27644391,193.37,193.34,2.66]
[1761347842194,4.27644391,193.39,193.34,2.66]
[1761347842402,4.27644391,193.38,193.34,2.66]
[1761347842590,4.27644391,193.37,193.34,2.66]
[1761347842791,4.27644391,193.39,193.34,2.66]
[1761347843007,4.27644391,193.38,193.34,2.66]
[1761347843294,4.27644391,193.37,193.34,2.66]
[1761347843499,4.27644391,193.39,193.34,2.66]
[1761347843804,4.27644391,193.38,193.34,2.66]
[1761347843992,4.27644391,193.37,193.34,2.66]
[1761347844293,4.27644391,193.39,193.34,2.66]
[1761347844596,4.27644391,193.38,193.34,2.66]
[1761347844799,4.27644391,193.41,193.34,2.66]
[1761347845097,4.27644391,193.4,193.34,2.66]
[1761347845302,4.27644391,193.39,193.34,2.66]
[1761347845600,4.27644391,193.41,193.34,2.66]
[1761347845797,4.27644391,193.4,193.34,2.66]
[1761347846002,4.27644391,193.39,193.34,2.66]
[1761347846195,68.45944109,193.42,193.34,2.66]
[1761347846196,4.27644391,193.41,193.34,2.66]
[1761347846397,4.27644391,193.4,193.34,2.66]
[1761347846584,4.27644391,193.39,193.34,2.66]
[1761347846791,4.27644391,193.4,193.34,2.66]
[1761347846999,4.27644391,193.39,193.34,2.66]
[1761347847300,4.27644391,193.4,193.34,2.66]
[1761347847484,4.27644391,193.39,193.34,2.66]
[1761347847687,4.27644391,193.4,193.34,2.66]
[1761347847887,4.27644391,193.39,193.34,2.66]
[1761347848100,4.27644391,193.4,193.34,2.66]
[1761347848299,4.27644391,193.39,193.34,2.66]
[1761347849498,4.27644391,193.39,193.31,7.49802823]
[1761347849499,5.783185,193.38,193.31,7.49802823]
[1761347849705,4.27644391,193.37,193.31,7.49802823]
[1761347850196,4.27644391,193.37,193.31,4.83802823]
[1761347850396,4.27644391,193.37,193.32,2.66]
[1761347850597,4.29043221,193.37,193.32,2.66]
[1761347860400,4.29043221,193.39,193.33,2.63]
[1761347860595,4.29043221,193.38,193.33,2.63]
[1761347860803,4.29043221,193.37,193.33,2.63]
[1761347861004,4.29043221,193.39,193.33,2.63]
[1761347861197,4.29043221,193.38,193.33,2.63]
[1761347861502,4.29043221,193.39,193.33,2.63]
[1761347861802,4.29043221,193.38,193.34,2.63]
[1761347862002,4.29043221,193.4,193.34,2.63]
[1761347862301,4.29043221,193.39,193.34,2.63]
[1761347862500,4.29043221,193.38,193.34,2.63]
[1761347862702,4.29043221,193.4,193.34,2.63]
[1761347862902,4.29043221,193.39,193.34,2.63]
[1761347863101,1.50674109,193.41,193.34,2.63]
[1761347864804,6.15954109,193.41,193.34,2.63]
[1761347866306,4.6528,193.41,193.34,4.6542]
[1761347866506,6.15954109,193.41,193.35,2.63]
[1761347867305,10.9636216,193.43,193.36,2.63]
[1761347867507,6.15904109,193.43,193.36,2.63]
[1761347869006,6.15904109,193.43,193.36,4.6537]
[1761347869206,6.15904109,193.43,193.37,2.63]
[1761347875217,4.6523,193.43,193.38,2.63]
[1761347880117,4.6523,193.43,193.37,1.50674109]
[1761347880421,4.6523,193.43,193.37,4.14674109]
[1761347880720,4.6526,193.42,193.35,6.3446451]
[1761347881013,1.50674109,193.41,193.34,7.2943]
[1761347881419,1.50674109,193.39,193.33,4.83790401]
[1761347881617,1.50674109,193.39,193.31,8.80154109]
[1761347881618,1.50674109,193.39,193.31,13.6394451]
[1761347882017,4.6535,193.38,193.31,13.6394451]
[1761347883425,4.6535,193.38,193.31,12.13270401]
[1761347883721,1.50674109,193.37,193.29,7.47790401]
[1761347884314,1.50674109,193.37,193.29,2.64]
[1761347885019,1.50674109,193.35,193.28,4.83790401]
[1761347885417,1.50674109,193.35,193.28,1.50674109]
[1761347886917,62.28,193.34,193.27,1.50674109]
[1761347887327,62.28,193.34,193.26,10.17868109]
[1761347888122,4.6548,193.33,193.26,10.17868109]
[1761347888722,4.6548,193.33,193.26,8.67194]
[1761347900045,62.28,193.34,193.26,8.67194]
[1761347900248,62.28,193.34,193.26,6.03194]
[1761347900442,64.6354366,193.34,193.26,6.03194]
[1761347900748,2.3554366,193.31,193.26,6.03194]
[1761347902954,4.6557,193.29,193.26,6.03194]
[1761347903252,2.3554366,193.31,193.15,2.68]
[1761347903253,2.3554366,193.27,193.15,2.68]
[1761347903452,2.3554366,193.24,193.15,2.68]
[1761347903647,4.6574,193.22,193.15,3.58088924]
[1761347903848,61.6174,193.22,193.15,3.58088924]
[1761347904555,4.6578,193.2,193.16,2.68]
[1761347905259,4.6578,193.2,193.15,0.90088924]
[1761347905260,2.3554366,193.22,193.15,2.68]
[1761347905556,52.58,193.21,193.15,2.68]
[1761347905760,6.44100558,193.31,193.15,2.68]
[1761347905761,4.6556,193.29,193.19,2.68]
[1761347906954,4.6556,193.29,193.21,2.68]
[1761347907155,4.6551,193.31,193.21,2.68]
[1761347908151,4.6551,193.31,193.22,2.68]
[1761347909656,2.3554366,193.3,193.22,2.68]
[1761347911764,4.6551,193.31,193.23,2.68]
[1761347911964,7.0105366,193.31,193.23,2.68]
[1761347919066,7.0105366,193.31,193.22,7.2672]
[1761347919267,7.0105366,193.31,193.23,2.61]
[1761347921267,4.6551,193.31,193.23,2.61]
[1761347921471,7.0105366,193.31,193.23,2.61]
[1761347922971,69.5905366,193.31,193.23,2.61]
[1761347927371,7.0105366,193.31,193.23,2.61]
[1761347927675,69.5905366,193.31,193.23,2.61]
[1761347928967,2.3554366,193.28,193.23,2.61]
[1761347940988,4.6548,193.33,193.23,4.6568]
[1761347941191,64.8754366,193.32,193.24,2.58]
[1761347942089,69.5304366,193.32,193.24,2.58]
[1761347942680,7.0104366,193.32,193.24,2.58]
[1761347942885,7.0104366,193.32,193.25,2.58]
[1761347943081,2.3554366,193.32,193.25,2.58]
[1761347943790,2.3554366,193.32,193.26,2.58]
[1761347944797,7.0104366,193.32,193.26,2.58]
[1761347944993,7.0104366,193.32,193.25,4.6563]
[1761347945199,2.3554366,193.29,193.23,2.58]
[1761347949892,4.6555,193.3,193.23,2.58]
[1761347950093,4.6549,193.32,193.25,2.82]
[1761347950903,1.5077547,193.3,193.25,2.82]
[1761347951704,1.5077547,193.28,193.25,2.82]
[1761347952402,4.6552,193.31,193.25,2.82]
[1761347952403,1.5077547,193.3,193.25,2.82]
[1761347963916,4.6552,193.31,193.25,2.82]
[1761347964106,6.1629547,193.31,193.25,2.82]
[1761347971923,4.6552,193.31,193.25,2.82]
[1761347973126,4.6552,193.31,193.25,1.5077547]
[1761347973325,9.45463674,193.33,193.26,2.82]
[1761347973718,1.5077547,193.31,193.26,2.82]
[1761347974315,6.1629547,193.31,193.26,2.82]
[1761347987330,4.6552,193.31,193.26,2.82]
[1761347988434,6.1624547,193.33,193.26,2.82]
[1761347989336,10.96239144,193.33,193.26,2.82]
[1761347990336,6.1624547,193.33,193.26,2.82]
[1761347992135,4.655,193.32,193.26,2.82]
[1761347992332,1.5077547,193.33,193.26,2.82]
[1761347992333,6.30769144,193.33,193.26,2.82]
[1761347993437,1.5077547,193.31,193.26,2.82]
[1761347993940,6.1629547,193.31,193.26,2.82]
[1761348010657,4.6552,193.31,193.26,2.82]
[1761348018664,4.79993674,193.33,193.24,4.84279475]
[1761348018864,4.79993674,193.33,193.22,2.82]
[1761348018865,2.35578572,193.28,193.22,2.82]
[1761348019055,2.35578572,193.28,193.2,4.84279475]
[1761348019966,4.6563,193.27,193.2,7.66279475]
[1761348021063,2.35578572,193.28,193.2,2.82]
[1761348021064,4.6565,193.26,193.2,2.82]
[1761348021570,2.35578572,193.25,193.18,4.84279475]
[1761348021768,2.35578572,193.25,193.17,7.66279475]
[1761348022063,67.19993674,193.27,193.17,2.82]
[1761348023070,4.657,193.23,193.17,2.82]
[1761348031468,62.4,193.25,193.18,2.82]
[1761348033081,67.0567,193.25,193.18,2.82]
[1761348036082,69.41248572,193.25,193.18,2.82]
[1761348037275,67.0567,193.25,193.18,2.82]
[1761348038978,4.6567,193.25,193.18,2.82]
[1761348039177,62.4,193.25,193.19,2.76]
[1761348040886,4.6561,193.27,193.19,2.76]
[1761348040887,62.4,193.26,193.19,2.76]
[1761348041587,62.4,193.26,193.15,4.84279475]
[1761348041588,4.6561,193.27,193.2,2.76]
[1761348042992,4.6561,193.27,193.21,2.76]
[1761348044789,62.4,193.28,193.22,2.76]
[1761348045292,160.12712649,193.29,193.22,2.76]
[1761348045293,215.51574077,193.29,193.22,7.417]
[1761348045589,215.51574077,193.29,193.23,2.76]
[1761348047688,217.87152649,193.29,193.23,2.76]
[1761348055395,62.38,193.28,193.23,2.76]
[1761348056002,155.47152649,193.29,193.24,2.76]
[1761348056306,215.49574077,193.29,193.24,2.76]
[1761348057108,215.49574077,193.29,193.25,2.76]
[1761348061013,153.11574077,193.29,193.25,2.76]
[1761348066421,155.47152649,193.29,193.25,2.76]
[1761348070218,155.47152649,193.29,193.24,4.6565]
[1761348070514,2.35578572,193.26,193.24,4.6565]
[1761348070825,1.50863931,193.25,193.24,4.6565]
[1761348074030,1.50863931,193.27,193.25,2.66]
[1761348075833,215.49574077,193.29,193.25,2.66]
[1761348076029,154.62438008,193.29,193.27,2.66]
[1761348076332,1.50863931,193.33,193.27,2.66]
[1761348076919,1.50863931,193.33,193.29,4.6555]
[1761348077125,1.50863931,193.33,193.3,2.66]
[1761348078131,1.50863931,193.33,193.31,2.66]
[1761348079132,1.50863931,193.35,193.31,2.66]
[1761348080330,1.50863931,193.33,193.3,4.6551]
[1761348080525,1.50863931,193.33,193.3,7.3151]
[1761348081533,1.50863931,193.33,193.3,4.6551]
[1761348081734,1.50863931,193.33,193.31,2.66]
[1761348082923,4.79993674,193.4,193.26,4.84279475]
[1761348082924,4.653,193.4,193.33,2.66]
[1761348083130,1.50863931,193.36,193.33,2.66]
[1761348084844,1.50863931,193.34,193.3,7.3153]
[1761348085136,1.50863931,193.34,193.31,2.66]
[1761348091540,1.50863931,193.36,193.31,2.66]
[1761348095940,1.50863931,193.36,193.31,7.3149]
[1761348096141,1.50863931,193.38,193.32,2.66]
[1761348097044,1.50863931,193.38,193.34,2.66]
[1761348099043,1.50863931,193.38,193.35,2.66]
[1761348100950,4.27358119,193.39,193.35,2.66]
[1761348101340,4.27358119,193.39,193.36,2.66]
[1761348101636,1.50863931,193.41,193.36,2.66]
[1761348102848,1.50863931,193.41,193.37,2.66]
[1761348112052,1.50863931,193.39,193.37,2.66]
[1761348113454,1.50863931,193.39,193.36,7.3136]
[1761348113650,1.50863931,193.37,193.36,7.3136]
[1761348114556,1.50863931,193.37,193.34,2.66]
[1761348121256,1.50863931,193.35,193.28,4.82346514]
[1761348121556,1.50863931,193.33,193.29,2.86]
[1761348121950,1.50863931,193.33,193.3,2.86]
[1761348122163,1.50863931,193.35,193.3,2.86]
[1761348123064,1.50863931,193.35,193.31,2.86]
[1761348132663,8.92652797,193.37,193.31,2.86]
[1761348134576,4.6537,193.37,193.31,2.86]
[1761348137983,8.94233351,193.37,193.31,2.86]
[1761348145690,4.28863351,193.36,193.31,2.86]
[1761348145883,8.94233351,193.37,193.31,2.86]
[1761348148688,4.28863351,193.36,193.31,2.86]
[1761348148886,8.94233351,193.37,193.31,2.86]
[1761348149588,6.64333335,193.37,193.29,4.82346514]
[1761348149783,2.35469984,193.34,193.26,4.82346514]
[1761348149982,4.655,193.32,193.26,2.76]
[1761348150179,8.94363351,193.32,193.26,2.76]
[1761348156798,4.655,193.32,193.26,2.76]
[1761348162903,67.015,193.32,193.26,2.76]
[1761348164199,4.655,193.32,193.26,2.76]
[1761348164398,67.015,193.32,193.26,2.76]
[1761348174117,175.77444463,193.34,193.26,2.76]
[1761348174420,62.36,193.32,193.26,2.76]
[1761348178017,4.6547,193.33,193.26,2.76]
[1761348178218,62.36,193.32,193.26,2.76]
[1761348185627,67.015,193.32,193.26,2.76]
[1761348194224,67.015,193.32,193.26,7.58346514]
[1761348194819,68.52259017,193.32,193.26,7.58346514]
[1761348199837,6.16259017,193.32,193.26,7.58346514]
[1761348200037,62.34,193.31,193.27,2.82]
[1761348201339,6.16259017,193.32,193.27,2.82]
[1761348201535,62.34,193.31,193.27,2.82]
[1761348206245,6.16259017,193.32,193.27,2.82]
[1761348206440,62.34,193.31,193.27,2.82]
[1761348210247,62.34,193.31,193.27,7.64346514]
[1761348217548,1.50759017,193.32,193.27,7.64346514]
[1761348217749,63.84759017,193.32,193.27,7.64346514]
[1761348219559,173.41974479,193.34,193.28,2.64]
[1761348219768,62.34,193.33,193.28,2.64]
[1761348222661,62.34,193.33,193.29,2.64]
[1761348224760,62.34,193.33,193.28,7.2957]
[1761348225865,168.76534479,193.34,193.28,7.2957]
[1761348226065,62.34,193.33,193.28,7.2957]
[1761348226266,62.34,193.33,193.29,2.64]
[1761348230175,62.34,193.33,193.3,2.64]
[1761348234672,62.34,193.33,193.28,9.47916514]
[1761348234876,62.34,193.33,193.29,2.64]
[1761348236170,63.84759017,193.33,193.29,2.64]
[1761348240681,1.50759017,193.33,193.29,2.64]
[1761348240881,63.84759017,193.33,193.29,2.64]
[1761348242177,1.50759017,193.33,193.29,2.64]
[1761348242380,63.84759017,193.33,193.29,2.64]
[1761348242681,62.34,193.33,193.29,2.64]
[1761348246583,168.76534479,193.34,193.29,2.64]
[1761348246776,62.32,193.33,193.29,2.64]
[1761348248080,63.82759017,193.33,193.29,2.64]
[1761348248282,63.82759017,193.33,193.28,7.2857]
[1761348252986,62.32,193.32,193.28,7.2857]
[1761348254196,62.32,193.32,193.28,4.6557]
[1761348254395,62.32,193.32,193.29,2.63]
[1761348256594,62.32,193.32,193.28,9.49730826]
[1761348257194,62.32,193.32,193.28,12.12730826]
[1761348262696,62.32,193.32,193.29,2.63]
[1761348280307,62.32,193.32,193.29,7.2854]
[1761348280500,62.32,193.32,193.3,2.6]
[1761348282104,15.52,193.46,193.32,2.6]
[1761348282105,62.32,193.43,193.32,2.6]
[1761348282310,62.32,193.43,193.36,2.6]
[1761348285214,62.32,193.43,193.37,4.8419798]
[1761348285404,62.32,193.43,193.38,4.8419798]
[1761348285607,62.32,193.43,193.39,4.8419798]
[1761348285804,62.32,193.43,193.4,4.8419798]
[1761348286009,62.32,193.43,193.41,4.8419798]
[1761348286215,62.32,193.43,193.42,4.8419798]
[1761348291021,62.3,193.43,193.42,4.8419798]
[1761348301023,62.28,193.43,193.42,4.8419798]
[1761348301525,4.6521,193.44,193.42,4.8419798]
[1761348301720,62.28,193.43,193.38,2.85]
[1761348301921,62.28,193.43,193.4,2.85]
[1761348302220,62.28,193.43,193.41,4.82575375]
[1761348302416,62.28,193.43,193.42,4.82575375]
[1761348303931,4.6521,193.44,193.42,4.82575375]
[1761348304228,4.6521,193.44,193.43,4.82575375]
[1761348304424,66.9321,193.44,193.43,4.82575375]
[1761348304620,66.9321,193.44,193.4,2.85]
[1761348304929,66.9321,193.44,193.41,4.82486138]
[1761348305230,66.9321,193.44,193.42,4.82486138]
[1761348305434,66.9321,193.44,193.4,2.85]
[1761348305627,66.9321,193.44,193.41,4.82511324]
[1761348305829,66.9321,193.44,193.42,4.82511324]
[1761348306030,66.9321,193.44,193.4,2.85]